bitfinex-derivatives/quotes_ETHF0:USTF0_20260117
["timestamp","ask_amount","ask_price","bid_price","bid_amount"]
[1768635085345,0.92267662,3294.5,3293.0,0.14205647]
[1768635085548,0.92267662,3294.4,3293.0,0.14205647]
[1768635085755,6.53343086,3294.8,3293.0,0.14205647]
[1768635085959,0.92256759,3294.7,3293.0,0.14205647]
[1768635086155,0.92256759,3294.6,3293.0,0.14205647]
[1768635086355,0.92256759,3294.5,3293.0,0.14205647]
[1768635086557,6.53343086,3294.8,3293.0,0.14205647]
[1768635086858,0.9224429,3294.7,3293.0,0.14205647]
[1768635087056,0.9224429,3294.6,3293.0,0.14205647]
[1768635087252,0.9224429,3294.5,3293.0,0.14205647]
[1768635087559,6.53343086,3294.8,3293.0,0.14205647]
[1768635087755,0.92234754,3294.7,3293.0,0.14205647]
[1768635088053,0.92234754,3294.6,3293.0,0.14205647]
[1768635088257,0.92234754,3294.5,3293.0,0.14205647]
[1768635088459,0.13397776,3294.7,3293.0,0.14205647]
[1768635088654,0.92227544,3294.6,3293.0,0.14205647]
[1768635088858,0.92227544,3294.5,3293.0,0.14205647]
[1768635089059,0.13397776,3294.7,3293.0,0.14205647]
[1768635089359,0.92227545,3294.6,3293.0,0.14205647]
[1768635089560,0.92227545,3294.5,3293.0,0.14205647]
[1768635089859,0.13397776,3294.7,3293.0,0.14205647]
[1768635090045,0.92222244,3294.6,3293.0,0.14205647]
[1768635090249,0.92222244,3294.5,3293.0,0.14205647]
[1768635090449,0.13397776,3294.7,3293.0,0.14205647]
[1768635090651,0.92217173,3294.6,3293.0,0.14205647]
[1768635090846,0.13397776,3294.7,3293.0,0.14205647]
[1768635090847,0.92217173,3294.5,3293.0,0.14205647]
[1768635091047,0.13397776,3294.7,3293.0,0.14205647]
[1768635091252,0.92217255,3294.6,3293.0,0.14205647]
[1768635091452,0.92217255,3294.5,3293.0,0.14205647]
[1768635091656,0.13397776,3294.7,3293.0,0.14205647]
[1768635091862,0.92211898,3294.6,3293.0,0.14205647]
[1768635092065,0.92211898,3294.5,3293.0,0.14205647]
[1768635092253,0.13397776,3294.7,3293.0,0.14205647]
[1768635092552,0.92207541,3294.6,3293.0,0.14205647]
[1768635092749,0.92207541,3294.5,3293.0,0.14205647]
[1768635092952,0.13397776,3294.7,3293.0,0.14205647]
[1768635093160,0.92207543,3294.6,3293.0,0.14205647]
[1768635093356,0.92207543,3294.5,3293.0,0.14205647]
[1768635093557,0.13397776,3294.7,3293.0,0.14205647]
[1768635093754,0.92204081,3294.6,3293.0,0.14205647]
[1768635093954,0.92204081,3294.5,3293.0,0.14205647]
[1768635094154,0.13397776,3294.7,3293.0,0.14205647]
[1768635094454,0.92204083,3294.6,3293.0,0.14205647]
[1768635094651,0.92204083,3294.5,3293.0,0.14205647]
[1768635094854,0.13397776,3294.7,3293.0,0.14205647]
[1768635095065,0.92201557,3294.6,3293.0,0.14205647]
[1768635095267,0.92201557,3294.5,3293.0,0.14205647]
[1768635095460,0.13397776,3294.7,3293.0,0.14205647]
[1768635095763,0.92200041,3294.6,3293.0,0.14205647]
[1768635096062,0.92200041,3294.5,3293.0,0.14205647]
[1768635096263,0.13397776,3294.7,3293.0,0.14205647]
[1768635096561,0.92199357,3294.6,3293.0,0.14205647]
[1768635096863,0.92199357,3294.5,3293.0,0.14205647]
[1768635097063,0.13397776,3294.7,3293.0,0.14205647]
[1768635097261,0.92199343,3294.6,3293.0,0.14205647]
[1768635097462,0.98411753,3294.4,3293.0,1.126174]
[1768635097663,1.7,3294.3,3293.0,1.126174]
[1768635105364,0.98411753,3294.2,3292.5,0.28565577]
[1768635105562,0.98411753,3294.0,3292.7,0.98411753]
[1768635105867,0.98411753,3294.0,3292.7,1.1178633]
[1768635107468,0.98411753,3294.0,3292.8,0.13374577]
[1768635108171,0.98411753,3294.2,3292.8,0.13374577]
[1768635110368,0.98411753,3294.2,3292.9,1.1178633]
[1768635110561,1.7,3294.3,3293.2,0.98411753]
[1768635110757,0.92270218,3294.2,3293.2,0.98411753]
[1768635110962,1.7,3294.4,3293.2,0.98411753]
[1768635111162,0.92270212,3294.3,3293.2,0.98411753]
[1768635111364,1.7,3294.4,3293.2,0.98411753]
[1768635111565,0.92273002,3294.3,3293.2,1.1178633]
[1768635111766,1.7,3294.4,3293.2,1.1178633]
[1768635112066,0.92273002,3294.3,3293.2,1.1178633]
[1768635112266,1.7,3294.4,3293.2,1.1178633]
[1768635112468,0.92276934,3294.3,3293.2,1.1178633]
[1768635112670,1.7,3294.4,3293.2,1.1178633]
[1768635112873,0.92276934,3294.3,3293.2,1.1178633]
[1768635113073,1.7,3294.4,3293.2,1.1178633]
[1768635113272,0.92276934,3294.3,3293.2,1.1178633]
[1768635113472,0.92276934,3294.2,3293.2,1.1178633]
[1768635113667,1.7,3294.4,3293.2,1.1178633]
[1768635113869,0.92282276,3294.3,3293.2,1.1178633]
[1768635114065,0.92282276,3294.2,3293.2,0.13374577]
[1768635114267,2.68411753,3294.4,3293.2,0.13374577]
[1768635114465,0.92281873,3294.3,3293.2,0.13374577]
[1768635114669,0.92281873,3294.2,3293.2,0.13374577]
[1768635114874,2.68411753,3294.4,3293.2,0.13374577]
[1768635115077,0.92281873,3294.3,3293.2,0.13374577]
[1768635115378,0.92281873,3294.2,3293.2,0.13374577]
[1768635115569,2.68411753,3294.4,3293.2,0.13374577]
[1768635115766,0.92281629,3294.3,3293.2,0.13374577]
[1768635115964,0.92281629,3294.2,3293.2,0.13374577]
[1768635116167,2.68411753,3294.4,3293.2,0.13374577]
[1768635116468,0.92281629,3294.3,3293.2,0.13374577]
[1768635116667,0.92281629,3294.2,3293.2,0.13374577]
[1768635116967,2.68411753,3294.4,3293.2,0.13374577]
[1768635117166,0.92280884,3294.3,3293.2,0.13374577]
[1768635117363,0.92280884,3294.2,3293.2,0.13374577]
[1768635117570,2.68411753,3294.4,3293.2,0.13374577]
[1768635117868,0.92280401,3294.3,3293.2,0.13374577]
[1768635118069,0.92280401,3294.2,3293.2,0.13374577]
[1768635118366,2.68411753,3294.4,3293.2,0.13374577]
[1768635118562,0.92280226,3294.3,3293.2,0.13374577]
[1768635118777,1.90691979,3294.2,3292.9,0.98411753]
[1768635118977,0.98411753,3294.2,3292.9,0.98411753]
[1768635120968,0.98411753,3294.2,3292.6,0.13320802]
[1768635121168,0.98411753,3294.2,3292.9,0.98411753]
[1768635122975,0.98411753,3294.2,3292.6,0.13320802]
[1768635123167,0.98411753,3294.0,3292.6,1.11732555]
[1768635132488,0.98411753,3294.2,3292.6,1.11732555]
[1768635132689,0.92293472,3294.1,3292.6,1.11732555]
[1768635132889,0.98411753,3294.2,3292.6,1.11732555]
[1768635133089,0.92293472,3294.1,3292.6,1.11732555]
[1768635133291,0.98411753,3294.2,3292.6,1.11732555]
[1768635133590,0.92296914,3294.1,3292.6,1.11732555]
[1768635133890,0.98411753,3294.2,3292.6,1.11732555]
[1768635134090,0.92296914,3294.1,3292.6,1.11732555]
[1768635134280,0.98411753,3294.2,3292.6,1.11732555]
[1768635134482,0.92301513,3294.1,3292.6,1.11732555]
[1768635134776,0.98411753,3294.2,3292.6,1.11732555]
[1768635134980,0.92301513,3294.1,3292.6,1.11732555]
[1768635135189,0.98411753,3294.2,3292.6,1.11732555]
[1768635135388,0.92301513,3294.1,3292.6,1.11732555]
[1768635135589,0.98411753,3294.2,3292.6,1.11732555]
[1768635135785,0.92307551,3294.1,3292.6,1.11732555]
[1768635135986,0.98411753,3294.2,3292.6,1.11732555]
[1768635136185,0.92307551,3294.1,3292.6,1.11732555]
[1768635136391,0.98411753,3294.2,3292.6,1.11732555]
[1768635136593,0.92306498,3294.1,3292.6,1.11732555]
[1768635136782,0.98411753,3294.2,3292.6,1.11732555]
[1768635136983,0.92306498,3294.1,3292.6,1.11732555]
[1768635137185,0.98411753,3294.2,3292.6,1.11732555]
[1768635137387,0.92306498,3294.1,3292.6,1.11732555]
[1768635137589,0.98411753,3294.2,3292.6,1.11732555]
[1768635137790,0.923056,3294.1,3292.6,1.11732555]
[1768635138090,0.98411753,3294.2,3292.6,1.11732555]
[1768635138290,0.923056,3294.1,3292.6,1.11732555]
[1768635138493,0.98411753,3294.2,3292.6,1.11732555]
[1768635138694,0.92304933,3294.1,3292.6,1.11732555]
[1768635138893,0.98411753,3294.2,3292.8,0.98411753]
[1768635139089,0.92304933,3294.1,3292.8,0.98411753]
[1768635139292,0.98411753,3294.2,3292.8,0.98411753]
[1768635139591,0.92304422,3294.1,3292.8,0.98411753]
[1768635139889,0.98411753,3294.2,3292.8,0.98411753]
[1768635140086,0.92304422,3294.1,3292.8,0.98411753]
[1768635140286,0.98411753,3294.2,3292.8,0.98411753]
[1768635140494,0.92304065,3294.1,3292.8,0.98411753]
[1768635140695,0.98411753,3294.2,3292.8,0.98411753]
[1768635140896,0.9233214,3294.1,3292.8,0.98411753]
[1768635141099,0.98411753,3294.2,3292.8,0.98411753]
[1768635141288,0.9233214,3294.1,3292.8,0.98411753]
[1768635141488,0.98411753,3294.2,3292.8,0.98411753]
[1768635141787,0.9233343,3294.1,3292.8,0.98411753]
[1768635141988,0.98411753,3294.2,3292.8,0.98411753]
[1768635142184,0.9233343,3294.1,3292.8,0.98411753]
[1768635142389,0.98411753,3294.2,3292.8,0.98411753]
[1768635142597,0.92335169,3294.1,3292.8,0.98411753]
[1768635142795,0.98411753,3294.2,3292.8,0.98411753]
[1768635142996,0.92335169,3294.1,3292.8,0.98411753]
[1768635143190,0.98411753,3294.2,3292.8,0.98411753]
[1768635143390,0.92335169,3294.1,3292.8,0.98411753]
[1768635143598,0.98411753,3294.2,3292.8,0.98411753]
[1768635143798,0.92337333,3294.1,3292.8,0.98411753]
[1768635143990,0.98411753,3294.2,3292.8,0.98411753]
[1768635144191,0.92337333,3294.1,3292.8,0.98411753]
[1768635144399,0.98411753,3294.2,3292.8,0.98411753]
[1768635144700,0.92339678,3294.1,3292.8,0.98411753]
[1768635144900,0.98411753,3294.2,3292.8,0.98411753]
[1768635145100,0.92339678,3294.1,3292.8,0.98411753]
[1768635145301,0.98411753,3294.2,3292.8,0.98411753]
[1768635145490,0.9234251,3294.1,3292.8,0.98411753]
[1768635145690,0.98411753,3294.2,3292.8,0.98411753]
[1768635145891,0.9234251,3294.1,3292.8,0.98411753]
[1768635146092,0.98411753,3294.2,3292.8,0.98411753]
[1768635146300,0.9234251,3294.1,3292.8,0.98411753]
[1768635146600,0.98411753,3294.2,3292.8,0.98411753]
[1768635146797,0.92345927,3294.1,3292.8,0.98411753]
[1768635146998,0.98411753,3294.2,3292.8,0.98411753]
[1768635147193,0.92345927,3294.1,3292.8,0.98411753]
[1768635147393,0.98411753,3294.2,3292.8,0.98411753]
[1768635147593,0.92350002,3294.1,3292.8,0.98411753]
[1768635147894,0.98411753,3294.2,3292.8,0.98411753]
[1768635148094,0.92350002,3294.1,3292.8,0.98411753]
[1768635148296,0.92355032,3294.0,3292.8,0.98411753]
[1768635148497,0.98411753,3294.2,3292.8,0.98411753]
[1768635148697,0.92355032,3294.1,3292.8,0.98411753]
[1768635148896,0.92355032,3294.0,3292.8,0.98411753]
[1768635149100,0.98411753,3294.2,3292.8,0.98411753]
[1768635149296,0.92355032,3294.1,3292.8,0.98411753]
[1768635149500,0.92355032,3294.0,3292.8,0.98411753]
[1768635149702,0.98411753,3294.2,3292.8,0.98411753]
[1768635149998,0.92360987,3294.1,3292.8,0.98411753]
[1768635150193,0.92360987,3294.0,3292.8,0.98411753]
[1768635150389,0.98411753,3294.2,3292.8,0.98411753]
[1768635150690,0.92361453,3294.1,3292.8,0.98411753]
[1768635150893,0.92361453,3294.0,3292.8,0.98411753]
[1768635151090,0.98411753,3294.2,3292.8,0.98411753]
[1768635151301,0.92361467,3294.1,3292.8,0.98411753]
[1768635151504,0.92361467,3294.0,3292.8,0.98411753]
[1768635151701,0.98411753,3294.2,3292.8,0.98411753]
[1768635151899,0.92369056,3294.1,3292.8,0.98411753]
[1768635152099,0.92369056,3294.0,3292.8,0.98411753]
[1768635152300,0.98411753,3294.2,3292.8,0.98411753]
[1768635152599,0.92383738,3294.1,3292.8,0.98411753]
[1768635152799,0.92383738,3294.0,3292.8,0.98411753]
[1768635153003,0.98411753,3294.2,3292.8,0.98411753]
[1768635153206,0.92383738,3294.1,3292.8,0.98411753]
[1768635153405,0.92383738,3294.0,3292.8,0.98411753]
[1768635153702,0.98411753,3294.2,3292.8,0.98411753]
[1768635153906,0.92389877,3294.1,3292.8,0.98411753]
[1768635154096,0.92389877,3294.0,3292.8,0.98411753]
[1768635154296,0.98411753,3294.2,3292.8,0.98411753]
[1768635154596,0.92390423,3294.1,3292.8,0.98411753]
[1768635154796,0.92390423,3294.0,3292.8,0.98411753]
[1768635155002,0.98411753,3294.2,3292.8,0.98411753]
[1768635155306,0.92390421,3294.1,3292.8,0.98411753]
[1768635155602,0.92390421,3294.0,3292.8,0.98411753]
[1768635155805,0.98411753,3294.2,3292.8,0.98411753]
[1768635156005,0.92390416,3294.1,3292.8,0.98411753]
[1768635156195,0.92390416,3294.0,3292.8,0.98411753]
[1768635156396,0.98411753,3294.2,3292.8,0.98411753]
[1768635156597,0.9239041,3294.1,3292.8,0.98411753]
[1768635156797,0.9239041,3294.0,3292.8,0.98411753]
[1768635156994,0.98411753,3294.2,3292.8,0.98411753]
[1768635157198,0.9239041,3294.1,3292.8,0.98411753]
[1768635157405,0.9239041,3294.0,3292.8,0.98411753]
[1768635157606,0.98411753,3294.2,3292.8,0.98411753]
[1768635157794,0.92390406,3294.1,3292.6,0.13320802]
[1768635157998,0.92390406,3294.0,3292.6,0.13320802]
[1768635158200,1.84300656,3294.4,3292.6,0.13320802]
[1768635158400,1.19085524,3294.3,3292.6,0.13320802]
[1768635158600,0.92390407,3294.2,3292.6,0.13320802]
[1768635158900,0.92390407,3294.1,3292.6,0.13320802]
[1768635159101,0.92390407,3294.0,3292.6,0.13320802]
[1768635159301,1.84300656,3294.4,3292.6,0.13320802]
[1768635159513,1.19085494,3294.3,3292.6,0.13320802]
[1768635159700,0.92390377,3294.2,3292.6,0.13320802]
[1768635159999,0.92390377,3294.1,3292.6,0.13320802]
[1768635160199,0.92390377,3294.0,3292.6,0.13320802]
[1768635160399,1.84300656,3294.4,3292.6,0.13320802]
[1768635160599,1.19085727,3294.3,3292.6,0.13320802]
[1768635160806,0.92390609,3294.2,3292.6,0.13320802]
[1768635161004,0.92390609,3294.1,3292.6,0.13320802]
[1768635161205,0.92390609,3294.0,3292.6,0.13320802]
[1768635161405,1.84300656,3294.4,3292.6,0.13320802]
[1768635161607,1.19085723,3294.3,3292.6,0.13320802]
[1768635161807,0.92390603,3294.2,3292.6,0.13320802]
[1768635162009,0.92390603,3294.1,3292.6,0.13320802]
[1768635162212,0.92390603,3294.0,3292.6,0.13320802]
[1768635162509,1.84300656,3294.4,3292.6,0.13320802]
[1768635162713,1.19085727,3294.3,3292.6,0.13320802]
[1768635162913,0.92390603,3294.2,3292.6,0.13320802]
[1768635163105,0.92390603,3294.1,3292.6,0.13320802]
[1768635163307,0.92390603,3294.0,3292.6,0.13320802]
[1768635163506,1.84300656,3294.4,3292.6,0.13320802]
[1768635163806,1.19085736,3294.3,3292.6,0.13320802]
[1768635164003,0.92390608,3294.2,3292.6,0.13320802]
[1768635164204,0.92390608,3294.1,3292.6,0.13320802]
[1768635164409,0.92390608,3294.0,3292.6,0.13320802]
[1768635164603,1.84300656,3294.4,3292.6,0.13320802]
[1768635164804,1.19085732,3294.3,3292.6,0.13320802]
[1768635165007,0.92390604,3294.2,3292.6,0.13320802]
[1768635165298,0.92390604,3294.1,3292.6,0.13320802]
[1768635165506,0.92390604,3294.0,3292.6,0.13320802]
[1768635165710,1.84300656,3294.4,3292.6,0.13320802]
[1768635166008,1.19085775,3294.3,3292.6,0.13320802]
[1768635166208,0.92390633,3294.2,3292.6,0.13320802]
[1768635166409,0.92390633,3294.1,3292.6,0.13320802]
[1768635166609,0.92390633,3294.0,3292.6,0.13320802]
[1768635166809,1.84300656,3294.4,3292.6,0.13320802]
[1768635167012,1.19085804,3294.3,3292.6,0.13320802]
[1768635167212,0.92390654,3294.2,3292.6,0.13320802]
[1768635167413,0.92390654,3294.1,3292.6,0.13320802]
[1768635167615,0.92390654,3294.0,3292.6,0.13320802]
[1768635167814,1.84300656,3294.4,3292.6,0.13320802]
[1768635168115,1.19085806,3294.3,3292.6,0.13320802]
[1768635168310,0.92390658,3294.2,3292.6,0.13320802]
[1768635168508,0.92390658,3294.1,3292.6,0.13320802]
[1768635168708,0.92390658,3294.0,3292.6,0.13320802]
[1768635168908,1.84300656,3294.4,3292.6,0.13320802]
[1768635169114,1.19085851,3294.3,3292.6,0.13320802]
[1768635169415,0.92390693,3294.2,3292.6,0.13320802]
[1768635169618,0.92390693,3294.1,3292.6,0.13320802]
[1768635169815,0.92390693,3294.0,3292.6,0.13320802]
[1768635170019,1.84300656,3294.4,3292.6,0.13320802]
[1768635170206,1.19085888,3294.3,3292.6,0.13320802]
[1768635170407,0.92390714,3294.2,3292.6,0.13320802]
[1768635170616,0.92390714,3294.1,3292.6,0.13320802]
[1768635170913,0.92390714,3294.0,3292.6,0.13320802]
[1768635171221,0.14344602,3294.3,3292.6,0.13320802]
[1768635171405,0.92396683,3294.2,3292.6,0.13320802]
[1768635171605,0.92396683,3294.1,3292.6,0.13320802]
[1768635171808,0.92396683,3294.0,3292.6,0.13320802]
[1768635172007,0.14344602,3294.3,3292.6,0.13320802]
[1768635172206,0.92396683,3294.2,3292.6,0.13320802]
[1768635172404,0.92396683,3294.1,3292.6,0.13320802]
[1768635172608,0.92396683,3294.0,3292.6,0.13320802]
[1768635172812,0.14344602,3294.3,3292.6,0.13320802]
[1768635173012,0.92396697,3294.2,3292.6,0.13320802]
[1768635173218,0.92396697,3294.1,3292.6,0.13320802]
[1768635173420,0.92396697,3294.0,3292.6,0.13320802]
[1768635173619,0.14344602,3294.3,3292.6,0.13320802]
[1768635173919,0.92396321,3294.2,3292.6,0.13320802]
[1768635174121,0.92396321,3294.1,3292.6,0.13320802]
[1768635174418,0.92396321,3294.0,3292.6,0.13320802]
[1768635174720,0.14344602,3294.3,3292.6,0.13320802]
[1768635174919,0.92396112,3294.2,3292.6,0.13320802]
[1768635175119,0.92396112,3294.1,3292.6,0.13320802]
[1768635175321,0.92396112,3294.0,3292.6,0.13320802]
[1768635175520,0.14344602,3294.3,3292.6,0.13320802]
[1768635175711,0.92396029,3294.2,3292.6,0.13320802]
[1768635176008,0.92396029,3294.1,3292.6,0.13320802]
[1768635176212,0.92396029,3294.0,3292.6,0.13320802]
[1768635176415,0.14344602,3294.3,3292.6,0.13320802]
[1768635176707,0.92395956,3294.2,3292.6,0.13320802]
[1768635176910,0.92395956,3294.1,3292.6,0.13320802]
[1768635177106,0.92395956,3294.0,3292.6,0.13320802]
[1768635177314,0.14344602,3294.3,3292.6,0.13320802]
[1768635177611,0.92395894,3294.2,3292.6,0.13320802]
[1768635177813,0.92395894,3294.1,3292.6,0.13320802]
[1768635178012,0.92395894,3294.0,3292.6,0.13320802]
[1768635178311,0.14344602,3294.3,3292.6,0.13320802]
[1768635178509,0.92395802,3294.2,3292.6,0.13320802]
[1768635178710,0.92395802,3294.1,3292.6,0.13320802]
[1768635178908,0.92395802,3294.0,3292.6,0.13320802]
[1768635179119,0.14344602,3294.3,3292.6,0.13320802]
[1768635179321,0.92395802,3294.2,3292.6,0.13320802]
[1768635179522,0.92395802,3294.1,3292.6,0.13320802]
[1768635179718,0.92395802,3294.0,3292.6,0.13320802]
[1768635179920,0.14344602,3294.3,3292.6,0.13320802]
[1768635180218,0.92395742,3294.2,3292.6,0.13320802]
[1768635180527,0.92395742,3294.1,3292.6,0.13320802]
[1768635180708,0.92395742,3294.0,3292.6,0.13320802]
[1768635180913,0.14344602,3294.3,3292.6,0.13320802]
[1768635181122,0.92395761,3294.2,3292.6,0.13320802]
[1768635181323,0.92395761,3294.1,3292.6,0.13320802]
[1768635181516,0.92395761,3294.0,3292.6,0.13320802]
[1768635181823,0.14344602,3294.3,3292.6,0.13320802]
[1768635182024,0.92395738,3294.2,3292.6,0.13320802]
[1768635182228,0.92395738,3294.1,3292.6,0.13320802]
[1768635182525,0.92395738,3294.0,3292.6,0.13320802]
[1768635182724,0.14344602,3294.3,3292.6,0.13320802]
[1768635183022,0.92395609,3294.2,3292.6,0.13320802]
[1768635183210,0.92395609,3294.1,3292.6,0.13320802]
[1768635183413,0.92395609,3294.0,3292.6,0.13320802]
[1768635183609,0.14344602,3294.3,3292.6,0.13320802]
[1768635183819,0.9239542,3294.2,3292.6,0.13320802]
[1768635184027,0.9239542,3294.1,3292.6,0.13320802]
[1768635184215,0.9239542,3294.0,3292.6,0.13320802]
[1768635184417,0.14344602,3294.3,3292.6,0.13320802]
[1768635184628,0.9239446,3294.2,3292.6,0.13320802]
[1768635184815,0.9239446,3294.1,3292.6,0.13320802]
[1768635185019,0.9239446,3294.0,3292.6,0.13320802]
[1768635185221,0.14344602,3294.3,3292.6,0.13320802]
[1768635185422,0.92394423,3294.2,3292.6,0.13320802]
[1768635185629,0.92394423,3294.1,3292.6,0.13320802]
[1768635185810,0.92394423,3294.0,3292.6,0.13320802]
[1768635186011,0.14344602,3294.3,3292.6,0.13320802]
[1768635186225,0.92394061,3294.2,3292.6,0.13320802]
[1768635186425,0.92394061,3294.1,3292.6,0.13320802]
[1768635186622,0.92394061,3294.0,3292.6,0.13320802]
[1768635186820,0.14344602,3294.3,3292.6,0.13320802]
[1768635187120,0.92393618,3294.2,3292.6,0.13320802]
[1768635187321,0.92393618,3294.1,3292.6,0.13320802]
[1768635187521,0.92393618,3294.0,3292.6,0.13320802]
[1768635187724,0.14344602,3294.3,3292.6,0.13320802]
[1768635188022,0.92393442,3294.2,3292.6,0.13320802]
[1768635188223,0.92393442,3294.1,3292.6,0.13320802]
[1768635188422,0.92393442,3294.0,3292.6,0.13320802]
[1768635188619,0.14344602,3294.3,3292.6,0.13320802]
[1768635188812,0.92393296,3294.2,3292.6,0.13320802]
[1768635189016,1.06153029,3294.1,3292.6,0.13320802]
[1768635189217,0.13759733,3293.9,3292.5,0.15191]
[1768635210443,0.14334903,3294.3,3292.5,0.28818164]
[1768635210641,0.92277795,3294.2,3292.5,0.28818164]
[1768635210942,0.92277795,3294.1,3292.5,0.28818164]
[1768635211242,0.92277795,3294.0,3292.5,0.28818164]
[1768635211435,0.14334903,3294.3,3292.5,0.28818164]
[1768635211636,1.06179684,3294.2,3292.5,0.28818164]
[1768635211843,0.92277799,3294.1,3292.5,0.28818164]
[1768635212044,0.92277799,3294.0,3292.5,0.28818164]
[1768635212238,0.13901885,3294.2,3292.5,0.28818164]
[1768635212441,0.92277763,3294.1,3292.5,0.28818164]
[1768635212742,0.92277763,3294.0,3292.5,0.28818164]
[1768635212942,0.13901885,3294.2,3292.5,0.28818164]
[1768635213135,0.92279035,3294.1,3292.5,0.28818164]
[1768635213335,0.92279035,3294.0,3292.5,0.28818164]
[1768635213537,0.13901885,3294.2,3292.5,0.28818164]
[1768635213737,0.92278716,3294.1,3292.5,0.28818164]
[1768635213937,0.92278716,3294.0,3292.5,0.28818164]
[1768635214141,0.13901885,3294.2,3292.5,0.28818164]
[1768635214341,0.92277587,3294.1,3292.5,0.28818164]
[1768635214540,0.92277587,3294.0,3292.5,0.28818164]
[1768635214745,0.13901885,3294.2,3292.5,0.28818164]
[1768635215034,0.92278717,3294.1,3292.5,0.28818164]
[1768635215247,0.92278717,3294.0,3292.5,0.28818164]
[1768635215548,0.13901885,3294.2,3292.5,0.28818164]
[1768635215844,0.92279842,3294.1,3292.5,0.28818164]
[1768635216044,0.92279842,3294.0,3292.5,0.28818164]
[1768635216236,0.13901885,3294.2,3292.5,0.28818164]
[1768635216540,0.92279842,3294.1,3292.5,0.28818164]
[1768635216741,0.92279842,3294.0,3292.5,0.28818164]
[1768635217044,0.13901885,3294.2,3292.5,0.28818164]
[1768635217244,0.92281153,3294.1,3292.5,0.28818164]
[1768635217446,0.92281153,3294.0,3292.9,0.9842513]
[1768635217744,0.13901885,3294.2,3292.9,0.9842513]
[1768635217945,0.92282389,3294.1,3292.9,0.9842513]
[1768635218145,0.92282389,3294.0,3292.9,0.9842513]
[1768635218444,0.13901885,3294.2,3292.9,0.9842513]
[1768635218645,0.92283742,3294.1,3292.9,0.9842513]
[1768635218844,0.92283742,3294.0,3292.9,0.9842513]
[1768635219044,0.13901885,3294.2,3292.9,0.9842513]
[1768635219343,0.92283742,3294.1,3292.9,0.9842513]
[1768635219538,0.13901885,3294.2,3292.9,0.9842513]
[1768635219539,0.92283742,3294.0,3292.9,0.9842513]
[1768635219740,0.13901885,3294.2,3292.9,0.9842513]
[1768635219933,0.9228474,3294.1,3292.9,0.9842513]
[1768635220132,0.9228474,3294.0,3292.9,0.9842513]
[1768635220345,0.13901885,3294.2,3292.9,0.9842513]
[1768635220548,0.92285789,3294.1,3292.9,0.9842513]
[1768635220741,0.92285789,3294.0,3292.9,0.9842513]
[1768635220941,0.13901885,3294.2,3292.9,0.9842513]
[1768635221239,0.92285789,3294.1,3292.9,0.9842513]
[1768635221441,0.92285789,3294.0,3292.9,0.9842513]
[1768635221640,0.13901885,3294.2,3292.9,0.9842513]
[1768635221845,0.92286928,3294.1,3292.9,0.9842513]
[1768635222046,0.92286928,3294.0,3292.9,0.9842513]
[1768635222347,0.13901885,3294.2,3292.9,0.9842513]
[1768635222645,0.92288174,3294.1,3292.9,0.9842513]
[1768635222845,0.92288174,3294.0,3292.9,0.9842513]
[1768635223045,0.13901885,3294.2,3292.9,0.9842513]
[1768635223245,0.92288174,3294.1,3292.9,0.9842513]
[1768635223446,0.92288174,3294.0,3292.9,0.9842513]
[1768635223647,0.13901885,3294.2,3292.9,0.9842513]
[1768635223848,0.92288831,3294.1,3292.9,0.9842513]
[1768635224046,0.92288831,3294.0,3292.9,0.9842513]
[1768635224243,0.13901885,3294.2,3292.9,0.9842513]
[1768635224451,0.92288409,3294.1,3292.9,0.9842513]
[1768635224749,0.92288409,3294.0,3292.9,0.9842513]
[1768635225045,0.13901885,3294.2,3292.9,0.9842513]
[1768635225246,0.92288397,3294.1,3292.9,0.9842513]
[1768635225445,0.92288397,3294.0,3292.9,0.9842513]
[1768635225647,0.13901885,3294.2,3292.9,0.9842513]
[1768635225849,0.92288064,3294.1,3292.9,0.9842513]
[1768635226041,0.92288064,3294.0,3292.9,0.9842513]
[1768635226241,0.13901885,3294.2,3292.9,0.9842513]
[1768635226543,0.92288063,3294.1,3292.9,0.9842513]
[1768635226836,0.92288063,3294.0,3292.9,0.9842513]
[1768635227140,0.13901885,3294.2,3292.9,0.9842513]
[1768635227447,0.92287652,3294.1,3292.9,0.9842513]
[1768635227634,0.92287652,3294.0,3292.9,0.9842513]
[1768635227840,0.13901885,3294.2,3292.9,0.9842513]
[1768635228047,0.922874,3294.1,3292.9,0.9842513]
[1768635228241,0.922874,3294.0,3292.9,0.9842513]
[1768635228441,0.13901885,3294.2,3292.9,0.9842513]
[1768635228642,0.92287259,3294.1,3292.9,0.9842513]
[1768635228844,0.92287259,3294.0,3292.9,0.9842513]
[1768635229045,0.13901885,3294.2,3292.9,0.9842513]
[1768635229245,0.92288952,3294.1,3292.9,0.9842513]
[1768635229447,0.92288952,3294.0,3292.9,0.9842513]
[1768635229645,0.13901885,3294.2,3292.9,0.9842513]
[1768635229951,0.92289326,3294.1,3292.9,0.9842513]
[1768635230149,0.92289326,3294.0,3292.9,0.9842513]
[1768635230350,0.13901885,3294.2,3292.9,0.9842513]
[1768635230652,0.92289733,3294.1,3292.9,0.9842513]
[1768635230851,0.92289733,3294.0,3292.9,0.9842513]
[1768635231040,0.13901885,3294.2,3292.9,0.9842513]
[1768635231244,0.92322416,3294.1,3292.9,0.9842513]
[1768635231439,0.92322416,3294.0,3292.9,0.9842513]
[1768635231643,0.13901885,3294.2,3292.9,0.9842513]
[1768635231843,0.92322858,3294.1,3292.9,0.9842513]
[1768635232051,0.92322858,3294.0,3292.9,0.9842513]
[1768635232254,0.13901885,3294.2,3292.9,0.9842513]
[1768635232449,0.92323337,3294.1,3292.9,0.9842513]
[1768635232650,0.92323337,3294.0,3292.9,0.9842513]
[1768635232951,0.13901885,3294.2,3292.9,0.9842513]
[1768635233150,0.92323342,3294.1,3292.9,0.9842513]
[1768635233450,0.92323342,3294.0,3292.9,0.9842513]
[1768635233651,0.13901885,3294.2,3292.9,0.9842513]
[1768635233852,0.92323603,3294.1,3292.9,0.9842513]
[1768635234048,0.92323603,3294.0,3292.9,0.9842513]
[1768635234249,0.13901885,3294.2,3292.9,0.9842513]
[1768635234546,0.92323631,3294.1,3292.9,0.9842513]
[1768635234745,0.92323631,3294.0,3292.9,0.9842513]
[1768635235045,0.13901885,3294.2,3292.9,0.9842513]
[1768635235245,0.92323938,3294.1,3292.9,0.9842513]
[1768635235444,0.92323938,3294.0,3292.9,0.9842513]
[1768635235643,0.13901885,3294.2,3292.9,0.9842513]
[1768635235846,0.92324266,3294.1,3292.9,0.9842513]
[1768635236042,0.92324266,3294.0,3292.9,0.9842513]
[1768635236246,0.13901885,3294.2,3292.9,0.9842513]
[1768635236447,0.92324487,3294.1,3292.9,0.9842513]
[1768635236643,0.92324487,3294.0,3292.9,0.9842513]
[1768635236842,0.13901885,3294.2,3292.9,0.9842513]
[1768635237056,0.92324689,3294.1,3292.9,0.9842513]
[1768635237257,0.92324689,3294.0,3292.9,0.9842513]
[1768635237448,0.13901885,3294.2,3292.9,0.9842513]
[1768635237653,0.92325298,3294.1,3292.9,0.9842513]
[1768635237853,0.92325298,3294.0,3292.9,0.9842513]
[1768635238054,0.13901885,3294.2,3292.9,0.9842513]
[1768635238254,0.92325298,3294.1,3292.9,0.9842513]